fUST/lending_fUST_20251211
["ID","MTS","AMOUNT","RATE_DAILY","PERIOD"]
[398180474,1765419038582,-5956.4876015,0.000126,2]
[398180475,1765419038613,-85643.43287841,0.000126,2]
[398180476,1765419038624,-2164.68456246,0.000126,2]
[398180477,1765419038638,-1086.264,0.000126,2]
[398180485,1765419041486,-6791.7101283,0.000126,2]
[398180486,1765419041549,-3703.48346453,0.000126,2]
[398180487,1765419041560,-54537.42138399,0.000126,2]
[398180548,1765419045929,-5409.19040138,0.000126,2]
[398180550,1765419045940,-708.95109972,0.000126,2]
[398180552,1765419045954,-15181.52571509,0.000126,2]
[398180554,1765419045986,-2210.91946395,0.000126,2]
[398180556,1765419096424,150.0,6.68e-05,2]
[398180557,1765419096843,150.0,6.998e-05,2]
[398180558,1765419097258,150.0,7.316e-05,2]
[398180559,1765419097780,163.89,7.634e-05,2]
[398180560,1765419123257,160.61,6.7e-05,2]
[398180561,1765419173719,150.0,6.672e-05,2]
[398180562,1765419174171,150.0,6.99e-05,2]
[398180563,1765419174630,150.0,7.308e-05,2]
[398180564,1765419175023,150.0,7.625e-05,2]
[398180565,1765419185858,160.58,6.7e-05,2]
[398180566,1765419246986,150.0,6.678e-05,2]
[398180567,1765419247106,160.58,6.7e-05,2]
[398180568,1765419247469,150.0,6.996e-05,2]
[398180569,1765419247881,150.0,7.314e-05,2]
[398180570,1765419248303,150.0,7.633e-05,2]
[398180571,1765419305148,160.58,6.7e-05,2]
[398180572,1765419320039,150.0,6.68e-05,2]
[398180573,1765419320473,150.0,6.998e-05,2]
[398180574,1765419320898,150.0,7.316e-05,2]
[398180575,1765419321311,150.0,7.634e-05,2]
[398180576,1765419394387,150.0,6.676e-05,2]
[398180577,1765419394816,150.0,6.994e-05,2]
[398180578,1765419395422,150.0,7.312e-05,2]
[398180579,1765419395758,162.19,7.63e-05,2]
[398180580,1765419396625,-150.0,8.112e-05,2]
[398180581,1765419396648,-259.22468666,9.033e-05,2]
[398180582,1765419396674,-320.72852857,9.328e-05,2]
[398180583,1765419396696,-765.9711165,9.647e-05,2]
[398180584,1765419396717,-387.59044564,9.877e-05,2]
[398180585,1765419396739,-177.0,0.00010112,2]
[398180586,1765419396760,-199.89256055,0.00010243,2]
[398180587,1765419396781,-259.22468666,0.00010316,2]
[398180588,1765419396802,-250.46854725,0.00011003,2]
[398180589,1765419396823,-387.59044564,0.00011544,2]
[398180590,1765419396844,-259.22468666,0.00011598,2]
[398180591,1765419396866,-300.0,0.00011774,2]
[398180592,1765419396894,-419.3252911,0.00011775,2]
[398180593,1765419396916,-382.23911469,0.00011775,2]
[398180594,1765419396937,-500.0,0.00011775,2]
[398180595,1765419396958,-500.0,0.00011775,2]
[398180596,1765419396979,-289.75652268,0.00011775,2]
[398180597,1765419397001,-185.826,0.00011775,2]
[398180598,1765419397027,-144005.9373674,0.00011776,2]
[398180600,1765419471554,150.0,7.488e-05,2]
[398180601,1765419546709,150.0,7.492e-05,2]
[398180602,1765419622161,150.0,7.492e-05,2]
[398180610,1765419697593,150.0,7.49e-05,2]
[398180611,1765419771177,150.0,6.676e-05,2]
[398180612,1765419771600,150.0,6.994e-05,2]
[398180613,1765419772018,150.0,7.312e-05,2]
[398180614,1765419772430,151.13,7.63e-05,2]
[398180615,1765419837451,247373.84238524,0.00014,29]
[398180617,1765419844465,309131.83415141,0.00014,30]
[398180618,1765419844488,139121.3617255,0.00014,30]
[398180619,1765419846122,150.0,6.677e-05,2]
[398180620,1765419846518,150.0,6.995e-05,2]
[398180621,1765419846944,150.0,7.313e-05,2]
[398180622,1765419847373,180.17,7.631e-05,2]
[398180624,1765419921024,150.0,6.681e-05,2]
[398180625,1765419921450,150.0,6.999e-05,2]
[398180626,1765419921869,150.0,7.317e-05,2]
[398180627,1765419922297,182.59,7.635e-05,2]
[398180633,1765419996289,150.0,6.676e-05,2]
[398180634,1765419996724,150.0,6.994e-05,2]
[398180635,1765419997137,150.0,7.311e-05,2]
[398180636,1765419997543,150.39,7.629e-05,2]
[398180640,1765420071866,150.0,6.674e-05,2]
[398180641,1765420072301,150.0,6.992e-05,2]
[398180642,1765420072703,150.0,7.31e-05,2]
[398180643,1765420073132,183.71,7.628e-05,2]
[398180793,1765420146290,150.0,7.233e-05,2]
[398180795,1765420146708,150.0,7.577e-05,2]
[398180797,1765420147231,-530.0,7.844e-05,2]
[398180798,1765420147254,-150.0,7.899e-05,2]
[398180799,1765420147275,-395.04390092,9.294e-05,2]
[398180816,1765420204321,167.04,6.7e-05,2]
[398180833,1765420232123,-150.0,7.248e-05,2]
[398180835,1765420232132,-150.0,7.593e-05,2]
[398180837,1765420232141,-150.0,7.922e-05,2]
[398180838,1765420232150,-531.0,7.922e-05,2]
[398180839,1765420232159,-171.67,8.284e-05,2]
[398180840,1765420232168,-214.59,8.629e-05,2]
[398180842,1765420232178,-257.51,8.974e-05,2]
[398180844,1765420232187,-658.2614234,9.277e-05,2]
[398180845,1765420232196,-268.61007896,9.294e-05,2]
[398180847,1765420232205,-300.43,9.319e-05,2]
[398180849,1765420232213,-1232.76550024,9.502e-05,2]
[398180851,1765420232222,-343.35,9.664e-05,2]
[398180852,1765420232231,-177.0,9.899e-05,2]
[398180854,1765420232241,-386.27,0.00010009,2]
[398180856,1765420232250,-1232.76550024,0.00010285,2]
[398180858,1765420232259,-429.19,0.00010354,2]
[398180860,1765420232268,-663.65397988,0.00010583,2]
[398180861,1765420232280,-1232.76550024,0.00011067,2]
[398180864,1765420232294,-300.0,0.00011674,2]
[398180867,1765420232303,-561.42795436,0.00011675,2]
[398180870,1765420232313,-504.00759206,0.00011675,2]
[398180873,1765420232324,-500.0,0.00011675,2]
[398180876,1765420232333,-500.0,0.00011675,2]
[398180878,1765420232342,-6379.3966998,0.00011676,2]
[398180880,1765420232354,-1027.6,0.00011676,2]
[398180882,1765420232366,-282.34546992,0.00011676,2]
[398180884,1765420232379,-143509.74057186,0.00011676,2]
[398180894,1765420238068,-10853.45616028,0.00011676,2]
[398180897,1765420238177,-66572.84547157,0.00011676,2]
[398180898,1765420238190,-346908.97238749,0.00011676,2]
[398180899,1765420238202,-4542.958772,0.00011676,2]
[398180900,1765420238214,-7835.69838531,0.00011676,2]
[398180901,1765420238226,-11745.66988819,0.00011676,2]
[398180902,1765420238238,-2193.4165003,0.00011676,2]
[398180903,1765420238250,-600.0,0.00011676,2]
[398180904,1765420238261,-3844.60755911,0.00011676,2]
[398180905,1765420238273,-541.086,0.00011676,2]
[398180930,1765420240360,-450.9,0.00011676,2]
[398180931,1765420240371,-4576.01192515,0.00011676,2]
[398180932,1765420240410,-7794.06037926,0.00011676,2]
[398180933,1765420240421,-430.55025904,0.00011676,2]
[398180962,1765420243369,-18240.0,0.00011676,2]
[398180963,1765420243473,-900.01,0.00011676,2]
[398180964,1765420243485,-11309.80109592,0.00011676,2]
[398180965,1765420243529,-310.63394214,0.00011676,2]
[398181003,1765420246171,-6021.99999998,0.00011676,2]
[398181005,1765420246182,-641.0,0.00011676,2]
[398181018,1765420561051,150.0,0.0002,120]
[398181019,1765420582459,-150.0,7.245e-05,2]
[398181020,1765420623794,156.83,6.7e-05,2]
[398181021,1765420627330,150.0,7.245e-05,2]
[398181027,1765420685043,156.82,6.7e-05,2]
[398181028,1765420693756,150.0,7.245e-05,2]
[398181030,1765420760884,150.0,7.24e-05,2]
[398181032,1765420983873,182.93,6.7e-05,2]
[398181033,1765420984248,182.93,6.8e-05,2]
[398181034,1765420984672,182.93,7e-05,2]
[398181035,1765420985050,182.93,7.1e-05,2]
[398181036,1765421005647,182.69,6.651e-05,2]
[398181037,1765421028549,150.0,6.679e-05,2]
[398181038,1765421028981,150.0,6.997e-05,2]
[398181039,1765421029914,-150.0,7.247e-05,2]
[398181040,1765421061800,152.88,6.7e-05,2]
[398181041,1765421102385,150.0,6.712e-05,2]
[398181042,1765421102797,150.0,7.031e-05,2]
[398181044,1765421106671,167.69,6.7e-05,2]
[398181045,1765421107056,167.69,6.8e-05,2]
[398181046,1765421107434,167.69,7e-05,2]
[398181047,1765421107847,167.69,7.1e-05,2]
[398181071,1765421138254,693.06160965,0.0002,120]
[398181074,1765421175361,150.0,7.17e-05,2]
[398181075,1765421188435,160.32,6.7e-05,2]
[398181076,1765421228721,157.48,6.7e-05,2]
[398181077,1765421229111,157.48,6.8e-05,2]
[398181078,1765421229528,157.48,7e-05,2]
[398181079,1765421229931,157.48,7.1e-05,2]
[398181081,1765421304323,159.29,6.7e-05,2]
[398181082,1765421342170,-150.0,7.335e-05,2]
[398181083,1765421349500,151.09,6.7e-05,2]
[398181084,1765421349891,151.09,6.8e-05,2]
[398181085,1765421350295,151.09,7e-05,2]
[398181086,1765421350689,151.09,7.1e-05,2]
[398181087,1765421351083,151.09,7.3e-05,2]
[398181088,1765421368132,-151.09,7.4e-05,2]
[398181089,1765421368162,-526.0,7.494e-05,2]
[398181090,1765421368193,-151.09,7.6e-05,2]
[398181091,1765421368222,-150.0,7.608e-05,2]
[398181092,1765421368247,-151.09,7.7e-05,2]
[398181093,1765421368272,-9831.64069802,7.825e-05,2]
[398181094,1765421387233,150.0,7.105e-05,2]
[398181097,1765421425446,155.64,6.7e-05,2]
[398181098,1765421426430,155.64,7.1e-05,2]
[398181132,1765421432290,-150.0,7.444e-05,2]
[398181133,1765421432300,-494.07398776,7.444e-05,2]
[398181180,1765421438429,-30.92601224,7.444e-05,2]
[398181182,1765421438438,-155.64,7.5e-05,2]
[398181184,1765421438448,-150.0,7.782e-05,2]
[398181186,1765421438457,-300.0,7.824e-05,2]
[398181188,1765421438466,-300.0,7.824e-05,2]
[398181190,1765421438475,-300.0,7.824e-05,2]
[398181192,1765421438484,-300.0,7.824e-05,2]
[398181194,1765421438493,-1200.0,7.824e-05,2]
[398181196,1765421438503,-1780.60236062,7.825e-05,2]
[398181198,1765421438514,-2447.396,7.825e-05,2]
[398181201,1765421438530,-539.724,7.825e-05,2]
[398181203,1765421438540,-1011.96723323,7.825e-05,2]
[398181363,1765421440493,-3375.19376899,7.825e-05,2]
[398181367,1765421440994,-25736.55872494,7.825e-05,2]
[398181368,1765421441004,-155.64,7.9e-05,2]
[398181369,1765421441012,-300.0,7.98e-05,2]
[398181370,1765421441021,-300.0,7.98e-05,2]
[398181371,1765421441030,-300.0,7.98e-05,2]
[398181372,1765421441039,-300.0,7.98e-05,2]
[398181373,1765421441048,-300.0,7.98e-05,2]
[398181374,1765421441057,-300.0,7.98e-05,2]
[398181375,1765421441066,-300.0,7.98e-05,2]
[398181376,1765421441075,-300.0,7.98e-05,2]
[398181377,1765421441084,-300.0,7.98e-05,2]
[398181378,1765421441093,-300.0,7.98e-05,2]
[398181379,1765421441102,-300.0,7.98e-05,2]
[398181380,1765421441111,-300.0,7.98e-05,2]
[398181381,1765421441120,-300.0,7.98e-05,2]
[398181382,1765421441129,-300.0,7.98e-05,2]
[398181383,1765421441138,-300.0,7.98e-05,2]
[398181384,1765421441149,-199.96,8.007e-05,2]
[398181385,1765421441158,-150.0,8.12e-05,2]
[398181386,1765421441166,-600.0,8.139e-05,2]
[398181387,1765421441175,-405.66508326,8.299e-05,2]
[398181388,1765421441184,-500.0,8.299e-05,2]
[398181389,1765421441193,-296.43468146,8.299e-05,2]
[398181390,1765421441203,-500.0,8.299e-05,2]
[398181391,1765421441212,-500.0,8.299e-05,2]
[398181392,1765421441222,-500.0,8.299e-05,2]
[398181393,1765421441231,-500.0,8.299e-05,2]
[398181394,1765421441240,-500.0,8.299e-05,2]
[398181395,1765421441251,-500.0,8.299e-05,2]
[398181396,1765421441261,-500.0,8.299e-05,2]
[398181397,1765421441270,-500.0,8.299e-05,2]
[398181398,1765421441279,-500.0,8.299e-05,2]
[398181399,1765421441288,-410.02710619,8.299e-05,2]
[398181400,1765421441297,-500.0,8.299e-05,2]
[398181401,1765421441306,-500.0,8.299e-05,2]
[398181402,1765421441315,-500.0,8.299e-05,2]
[398181403,1765421441325,-500.0,8.299e-05,2]
[398181404,1765421441336,-500.0,8.299e-05,2]
[398181405,1765421441347,-500.0,8.299e-05,2]
[398181406,1765421441357,-500.0,8.299e-05,2]
[398181407,1765421441367,-500.0,8.299e-05,2]
[398181408,1765421441377,-500.0,8.299e-05,2]
[398181409,1765421441386,-500.0,8.299e-05,2]
[398181410,1765421441396,-500.0,8.299e-05,2]
[398181411,1765421441405,-500.0,8.299e-05,2]
[398181412,1765421441415,-500.0,8.299e-05,2]
[398181413,1765421441424,-500.0,8.299e-05,2]
[398181414,1765421441433,-500.0,8.299e-05,2]
[398181415,1765421441442,-500.0,8.299e-05,2]
[398181416,1765421441451,-500.0,8.299e-05,2]
[398181417,1765421441460,-262.06153262,8.299e-05,2]
[398181418,1765421441469,-500.0,8.299e-05,2]
[398181419,1765421441479,-500.0,8.299e-05,2]
[398181420,1765421441488,-500.0,8.299e-05,2]
[398181421,1765421441497,-158.73816749,8.299e-05,2]
[398181422,1765421441506,-50000.0,8.3e-05,2]
[398181423,1765421441515,-155.64,8.4e-05,2]
[398181424,1765421441524,-150.0,8.459e-05,2]
[398181425,1765421441533,-420.0,8.606e-05,2]
[398181426,1765421441542,-420.0,8.606e-05,2]
[398181427,1765421441551,-420.0,8.606e-05,2]
[398181428,1765421441561,-420.0,8.606e-05,2]
[398181429,1765421441570,-1680.0,8.606e-05,2]
[398181430,1765421441579,-563.28815006,8.618e-05,2]
[398181431,1765421441588,-1317.46796302,8.618e-05,2]
[398181432,1765421441597,-150.0,8.797e-05,2]
[398181433,1765421441606,-155.64,8.8e-05,2]
[398181434,1765421441616,-720.0,8.952e-05,2]
[398181435,1765421441627,-150.0,9.04e-05,2]
[398181436,1765421441636,-1200.0,9.147e-05,2]
[398181437,1765421441646,-300.0,9.147e-05,2]
[398181438,1765421441655,-155.64,9.2e-05,2]
[398181439,1765421441664,-177.0,9.335e-05,2]
[398181440,1765421441673,-1919.8397638,9.339e-05,2]
[398181441,1765421441683,-150.0,9.402e-05,2]
[398181442,1765421441692,-300.0,9.467e-05,2]
[398181443,1765421441701,-587.0,9.467e-05,2]
[398181444,1765421441711,-155.64,9.7e-05,2]
[398181445,1765421441720,-864.0,9.848e-05,2]
[398181446,1765421441730,-1317.46796302,9.939e-05,2]
[398181447,1765421441739,-563.28815006,9.998e-05,2]
[398181448,1765421441750,-1680.0,0.00010062,2]
[398181449,1765421441764,-155.64,0.000101,2]
[398181450,1765421441773,-323.58630055,0.00010155,2]
[398181451,1765421441783,-823.0,0.00010413,2]
[398181452,1765421441795,-155.64,0.000105,2]
[398181453,1765421441804,-1000.0,0.00010832,2]
[398181454,1765421441814,-155.64,0.00011,2]
[398181455,1765421441823,-1680.0,0.00011068,2]
[398181456,1765421441833,-1317.46796302,0.0001126,2]
[398181457,1765421441842,-204.0,0.00011335,2]
[398181458,1765421441851,-946.76633968,0.00011353,2]
[398181459,1765421441861,-2470.54092053,0.00011365,2]
[398181460,1765421441870,-563.28815006,0.00011378,2]
[398181461,1765421441879,-155.64,0.000114,2]
[398181462,1765421441888,-1152.0,0.00011455,2]
[398181463,1765421441899,-3760.009717,0.00011501,2]
[398181464,1765421441908,-392.99956805,0.00011575,2]
[398181465,1765421441917,-610.35855758,0.00011576,2]
[398181466,1765421441929,-366.39040813,0.00011576,2]
[398181500,1765421443527,-435.015,0.00011576,2]
[398181513,1765421446410,-176588.54142,0.00011576,2]
[398181514,1765421468887,151.3,6.7e-05,2]
[398181515,1765421468996,151.3,6.8e-05,2]
[398181516,1765421469176,151.3,7e-05,2]
[398181517,1765421469533,151.3,7.2e-05,2]
[398181518,1765421541960,153.92,6.7e-05,2]
[398181519,1765421589528,151.36,6.7e-05,2]
[398181520,1765421589887,151.36,6.8e-05,2]
[398181521,1765421590283,151.36,7e-05,2]
[398181522,1765421590667,151.36,7.2e-05,2]
[398181523,1765421662196,153.15,6.7e-05,2]
[398181524,1765421662577,153.15,7.3e-05,2]
[398181525,1765421710835,151.45,6.7e-05,2]
[398181526,1765421711825,151.45,6.8e-05,2]
[398181527,1765421712278,151.45,7e-05,2]
[398181528,1765421712775,151.45,7.2e-05,2]
[398181530,1765421779810,152.7,6.7e-05,2]
[398181531,1765421780201,152.7,7.2e-05,2]
[398181532,1765421830343,151.52,6.7e-05,2]
[398181533,1765421830712,151.52,6.9e-05,2]
[398181534,1765421831081,151.52,7.1e-05,2]
[398181535,1765421831455,151.52,7.3e-05,2]
[398181536,1765421897411,152.42,6.7e-05,2]
[398181537,1765421898492,152.42,7.1e-05,2]
[398181539,1765421950741,151.58,6.7e-05,2]
[398181540,1765421952993,-151.58,6.9e-05,2]
[398181541,1765421953026,-151.58,7.1e-05,2]
[398181542,1765421953056,-151.58,7.3e-05,2]
[398181544,1765422018954,152.36,6.7e-05,2]
[398181545,1765422019354,152.36,7.1e-05,2]
[398181546,1765422052356,169.390335,7.558e-05,120]
[398181548,1765422071679,151.63,6.7e-05,2]
[398181549,1765422072128,151.63,6.9e-05,2]
[398181550,1765422072589,151.63,7.1e-05,2]
[398181674,1765422137841,152.23,6.7e-05,2]
[398181675,1765422138222,152.23,7.1e-05,2]
[398181676,1765422191637,151.67,6.7e-05,2]
[398181677,1765422192326,151.67,6.9e-05,2]
[398181678,1765422193326,151.67,7.1e-05,2]
[398181681,1765422258540,152.13,6.7e-05,2]
[398181682,1765422258948,152.13,7.1e-05,2]
[398181685,1765422294116,-433.67214617,7.5e-05,2]
[398181686,1765422294148,-526.0,7.5e-05,2]
[398181687,1765422294180,-152.13,7.5e-05,2]
[398181688,1765422310892,155.16,6.7e-05,2]
[398181689,1765422311287,155.16,6.9e-05,2]
[398181690,1765422311719,155.16,7.2e-05,2]
[398181691,1765422315326,150.0,7.252e-05,2]
[398181692,1765422376184,152.64,6.7e-05,2]
[398181693,1765422376556,152.64,7.1e-05,2]
[398181694,1765422383527,150.0,7.254e-05,2]
[398181695,1765422413125,-152.64,7.5e-05,2]
[398181696,1765422413150,-48.68284955,7.529e-05,2]
[398181697,1765422432334,154.88,6.7e-05,2]
[398181698,1765422432736,154.88,6.9e-05,2]
[398181699,1765422433153,154.88,7.2e-05,2]
[398181700,1765422433549,154.88,7.5e-05,2]
[398181701,1765422448510,150.0,6.688e-05,2]
[398181702,1765422448920,150.0,7.006e-05,2]
[398181703,1765422449351,150.0,7.325e-05,2]
[398181704,1765422494518,153.11,6.7e-05,2]
[398181705,1765422494932,153.11,7.1e-05,2]
[398181706,1765422495327,153.11,7.5e-05,2]
[398181707,1765422519279,9540.68,7e-05,2]
[398181708,1765422519298,10000.01,7e-05,2]
[398181709,1765422519318,10000.01,7e-05,2]
[398181710,1765422519341,10000.01,7e-05,2]
[398181711,1765422519361,10000.01,7e-05,2]
[398181712,1765422523815,150.0,6.684e-05,2]
[398181714,1765422551010,198.822119,6.7e-05,2]
[398181715,1765422555367,-8.397881,6.7e-05,2]
[398181716,1765422555397,-207.22,6.8e-05,2]
[398181717,1765422555428,-300.0,6.999e-05,2]
[398181718,1765422578928,-8359.80209183,7e-05,2]
[398181719,1765422600972,631.91,6.749e-05,2]
[398181786,1765422638501,-300.0,6.999e-05,2]
[398181788,1765422638511,-62.75262753,6.999e-05,2]
[398181794,1765422638556,-237.24737247,6.999e-05,2]
[398181796,1765422638566,-1200.0,6.999e-05,2]
[398181798,1765422638576,-519.0,6.999e-05,2]
[398181800,1765422638585,-1244.87283808,7e-05,2]
[398181803,1765422638596,-943.04344311,7e-05,2]
[398181805,1765422638607,-25837.2324568,7e-05,2]
[398181807,1765422638618,-76405.63967939,7e-05,2]
[398181809,1765422638629,-55335.1128287,7e-05,2]
[398181811,1765422638638,-1263.83,7.07e-05,2]
[398181813,1765422638649,-300.0,7.139e-05,2]
[398181815,1765422638658,-300.0,7.139e-05,2]
[398181817,1765422638668,-300.0,7.139e-05,2]
[398181819,1765422638677,-300.0,7.139e-05,2]
[398181821,1765422638686,-300.0,7.139e-05,2]
[398181823,1765422638695,-300.0,7.139e-05,2]
[398181825,1765422638704,-300.0,7.139e-05,2]
[398181827,1765422638713,-300.0,7.139e-05,2]
[398181829,1765422638722,-300.0,7.139e-05,2]
[398181831,1765422638732,-300.0,7.139e-05,2]
[398181833,1765422638741,-300.0,7.139e-05,2]
[398181834,1765422638750,-300.0,7.139e-05,2]
[398181837,1765422638761,-300.0,7.139e-05,2]
[398181839,1765422638771,-300.0,7.139e-05,2]
[398181840,1765422638780,-300.0,7.139e-05,2]
[398181842,1765422638790,-600.0,7.139e-05,2]
[398181845,1765422638799,-6635.09523788,7.3e-05,2]
[398181847,1765422638810,-2237.31396154,7.3e-05,2]
[398181849,1765422638822,-538.362,7.3e-05,2]
[398181851,1765422638834,-320.79809729,7.3e-05,2]
[398181876,1765422640716,-14436.7431375,7.3e-05,2]
[398181885,1765422643794,-18910.90684299,7.3e-05,2]
[398181886,1765422643804,-1895.74,7.392e-05,2]
[398181887,1765422643813,-150.0,7.543e-05,2]
[398181888,1765422643823,-169.390335,7.558e-05,2]
[398181889,1765422643832,-420.0,7.699e-05,2]
[398181890,1765422643842,-2527.65,7.713e-05,2]
[398181891,1765422643851,-720.0,7.853e-05,2]
[398181892,1765422643861,-493.7627524,7.921e-05,2]
[398181893,1765422643870,-2894.93189315,8.034e-05,2]
[398181894,1765422643953,-22.36920551,8.034e-05,2]
[398181895,1765422643964,-242.26890134,8.034e-05,2]
[398181896,1765422643973,-361.73109866,8.356e-05,2]
[398181897,1765422644079,-3429.74890134,8.356e-05,2]
[398181898,1765422644089,-284.0,8.463e-05,2]
[398181899,1765422644098,-587.0,8.469e-05,2]
[398181900,1765422644283,-864.0,8.638e-05,2]
[398181901,1765422644350,-1057.16310966,8.677e-05,2]
[398181909,1765422646608,-3366.22689034,8.677e-05,2]
[398181910,1765422646618,-634.53527209,8.97e-05,2]
[398181911,1765422646627,-879.83708912,8.97e-05,2]
[398181912,1765422646636,-3361.32749004,8.998e-05,2]
[398181913,1765422646648,-1693.98250996,8.998e-05,2]
[398181914,1765422646658,-823.0,9.316e-05,2]
[398181915,1765422646667,-5687.22,9.32e-05,2]
[398181916,1765422646676,-807.31555179,9.502e-05,2]
[398181917,1765422646687,-192.68444821,9.502e-05,2]
[398181919,1765422646696,-177.0,9.543e-05,2]
[398181921,1765422646705,-231.31555178,9.641e-05,2]
[398181924,1765422677162,199.65,6.7e-05,2]
[398181925,1765422723514,150.05,6.7e-05,2]
[398181926,1765422765131,273.85,6.683e-05,2]
[398181929,1765422800119,299.91,6.7e-05,2]
[398181931,1765422843535,150.05,6.7e-05,2]
[398181932,1765422849108,276.09,6.695e-05,2]
[398181937,1765422884642,-150.0,0.00013214,7]
[398181939,1765422909124,-10.0,0.00013214,7]
[398181940,1765422920157,153.5,6.7e-05,2]
[398181942,1765422934474,278.48,6.692e-05,2]
[398181943,1765422964738,150.14,6.7e-05,2]
[398181944,1765422986415,-160.0,0.00013371,8]
[398181945,1765423019823,278.76,6.691e-05,2]
[398181946,1765423035518,-150.0,7e-05,2]
[398181947,1765423041968,154.41,6.7e-05,2]
[398181948,1765423086338,150.25,6.7e-05,2]
[398181949,1765423103739,280.93,6.693e-05,2]
[398181950,1765423118366,-150.0,0.00015,45]
[398181951,1765423140849,-150.0,0.00015,45]
[398181952,1765423159724,153.37,6.7e-05,2]
[398181953,1765423205826,150.33,6.7e-05,2]
[398181969,1765423280584,152.61,6.7e-05,2]
[398181983,1765423326451,150.39,6.7e-05,2]
[398182077,1765423358892,288.81,6.694e-05,2]
[398182079,1765423402800,152.04,6.7e-05,2]
[398182080,1765423442484,290.87,6.692e-05,2]
[398182081,1765423446459,150.43,6.7e-05,2]
[398182082,1765423520846,151.66,6.7e-05,2]
[398182083,1765423565716,150.46,6.7e-05,2]
[398182085,1765423608095,296.71,6.718e-05,2]
[398182090,1765423640094,151.37,6.7e-05,2]
[398182101,1765423685820,150.48,6.7e-05,2]
[398182105,1765423689573,297.13,6.724e-05,2]
[398182174,1765423760911,151.18,6.7e-05,2]
[398182176,1765423771300,-150.0,6.9e-05,2]
[398182177,1765423771321,-520.0,7.074e-05,2]
[398182178,1765423771343,-300.0,7.137e-05,2]
[398182179,1765423771366,-300.0,7.138e-05,2]
[398182180,1765423771388,-300.0,7.138e-05,2]
[398182181,1765423771411,-300.0,7.138e-05,2]
[398182182,1765423771432,-300.0,7.138e-05,2]
[398182183,1765423771456,-300.0,7.138e-05,2]
[398182184,1765423771481,-300.0,7.138e-05,2]
[398182185,1765423771501,-300.0,7.138e-05,2]
[398182186,1765423771524,-300.0,7.138e-05,2]
[398182187,1765423771550,-300.0,7.138e-05,2]
[398182188,1765423771572,-300.0,7.138e-05,2]
[398182189,1765423771593,-300.0,7.138e-05,2]
[398182190,1765423771613,-300.0,7.138e-05,2]
[398182191,1765423771634,-300.0,7.138e-05,2]
[398182192,1765423771655,-300.0,7.138e-05,2]
[398182193,1765423771677,-253.43973338,7.138e-05,2]
[398182194,1765423772255,301.96,6.735e-05,2]
[398182196,1765423806441,150.5,6.7e-05,2]
[398182221,1765423832647,-150.5,6.8e-05,2]
[398182223,1765423832657,-150.5,7e-05,2]
[398182225,1765423832666,-407.74306836,7.056e-05,2]
[398182227,1765423832678,-196.18693164,7.056e-05,2]
[398182228,1765423832687,-338.4568756,7.056e-05,2]
[398182230,1765423832703,-181.5431244,7.056e-05,2]
[398182232,1765423832712,-150.0,7.097e-05,2]
[398182234,1765423832722,-46.56026662,7.138e-05,2]
[398182235,1765423832731,-150.5,7.2e-05,2]
[398182236,1765423832740,-600.0,7.28e-05,2]
[398182237,1765423832750,-905.89,7.376e-05,2]
[398182238,1765423832759,-150.5,7.4e-05,2]
[398182239,1765423832769,-300.0,7.507e-05,2]
[398182240,1765423832779,-15433.8302146,7.508e-05,2]
[398182241,1765423832788,-150.5,7.6e-05,2]
[398182242,1765423832797,-1207.85,7.697e-05,2]